bitfinex/quotes_SOLUSD_20250617
["timestamp","ask_amount","ask_price","bid_price","bid_amount"]
[1750132360544,5.88223625,153.4,153.36,5.88223625]
[1750132360716,39.12078974,153.41,153.36,5.88223625]
[1750132361533,39.12078974,153.41,153.37,5.88223625]
[1750132362038,33.23855349,153.41,153.37,5.88223625]
[1750132362432,33.23855349,153.41,153.38,5.88223625]
[1750132362922,6.51855349,153.41,153.38,5.88223625]
[1750132363323,26.72,153.4,153.35,6.52090445]
[1750132363520,26.72,153.4,153.38,5.88223625]
[1750132363922,33.23892293,153.4,153.38,5.88223625]
[1750132364140,33.23892293,153.4,153.37,5.88223625]
[1750132364641,26.72,153.39,153.37,5.88223625]
[1750132365013,26.72,153.39,153.38,5.88223625]
[1750132371921,6.51855726,153.41,153.38,5.88223625]
[1750132372121,26.72,153.4,153.38,5.88223625]
[1750132374435,26.72,153.4,153.39,5.88223625]
[1750132375736,33.2389139,153.4,153.35,6.52103032]
[1750132375925,5.76,153.39,153.38,5.88223625]
[1750132378384,5.76,153.39,153.37,5.88223625]
[1750132378641,12.27944155,153.39,153.36,5.88223625]
[1750132379034,26.72,153.38,153.36,5.88223625]
[1750132381138,33.23987847,153.38,153.35,5.88223625]
[1750132381529,26.72,153.38,153.36,5.88223625]
[1750132381723,26.72,153.38,153.33,6.52172918]
[1750132381724,26.72,153.38,153.37,5.88223625]
[1750132381945,5.76,153.39,153.37,5.88223625]
[1750132382173,5.76,153.39,153.38,5.88223625]
[1750132384046,5.76,153.39,153.35,32.52088809]
[1750132384248,5.76,153.39,153.38,5.88223625]
[1750132384470,5.76,153.39,153.35,6.52088809]
[1750132384674,5.76,153.39,153.38,5.88223625]
[1750132385374,5.76,153.39,153.35,6.52088809]
[1750132385577,26.72,153.38,153.35,5.88223625]
[1750132386145,26.72,153.38,153.36,5.88223625]
[1750132386378,26.72,153.38,153.37,5.88223625]
[1750132388449,26.72,153.38,153.36,5.88223625]
[1750132388876,33.23982585,153.38,153.36,5.88223625]
[1750132389058,12.27946324,153.39,153.37,5.88223625]
[1750132389268,26.72,153.38,153.37,5.88223625]
[1750132390145,33.23975485,153.38,153.37,5.88223625]
[1750132390568,33.23975485,153.38,153.36,5.88223625]
[1750132391265,26.72,153.38,153.37,5.88223625]
[1750132393073,26.72,153.38,153.35,6.52068303]
[1750132393406,26.72,153.38,153.37,5.88223625]
[1750132394255,32.48,153.39,153.37,5.88223625]
[1750132394457,32.48,153.39,153.38,5.88223625]
[1750132394761,4.87883059,153.42,153.38,5.88223625]
[1750132394962,37.85954138,153.45,153.38,27.6421]
[1750132395157,44.37665589,153.45,153.38,27.6421]
[1750132395365,4.87908146,153.44,153.4,5.88223625]
[1750132395567,27.22,153.43,153.4,5.88223625]
[1750132395758,27.22,153.43,153.42,5.88223625]
[1750132396154,27.22,153.43,153.38,26.0]
[1750132396378,27.22,153.43,153.42,5.88223625]
[1750132397585,27.22,153.43,153.38,26.0]
[1750132397777,27.22,153.43,153.4,5.88223625]
[1750132398670,27.22,153.43,153.42,5.88223625]
[1750132398868,27.22,153.43,153.37,6.52017995]
[1750132398869,33.73763018,153.43,153.37,6.52017995]
[1750132399068,27.22,153.43,153.41,5.88223625]
[1750132399286,27.22,153.43,153.37,6.52017995]
[1750132399584,27.22,153.43,153.42,5.88223625]
[1750132401876,27.22,153.43,153.4,5.88223625]
[1750132402191,27.22,153.43,153.36,31.88223625]
[1750132402192,37.97810359,153.43,153.39,5.88223625]
[1750132402394,27.22,153.43,153.36,26.0]
[1750132402591,32.09586734,153.43,153.39,5.88223625]
[1750132403169,12.57805501,153.42,153.4,5.88223625]
[1750132403369,6.06,153.42,153.41,5.88223625]
[1750132410096,6.06,153.42,153.41,12.40071614]
[1750132410401,11.31718099,153.46,153.44,26.0]
[1750132410577,11.31718099,153.46,153.45,5.88223625]
[1750132411702,11.31718099,153.46,153.45,12.39901696]
[1750132412406,11.31718099,153.46,153.38,22.58885434]
[1750132412700,38.51718099,153.46,153.43,5.88223625]
[1750132413571,45.03357966,153.46,153.43,5.88223625]
[1750132415180,38.51718099,153.46,153.45,5.88223625]
[1750132415387,11.31718099,153.46,153.45,5.88223625]
[1750132416783,6.06,153.47,153.45,5.88223625]
[1750132417096,6.06,153.47,153.46,5.88223625]
[1750132420600,6.06,153.47,153.41,6.51847989]
[1750132420786,6.06,153.47,153.46,5.88223625]
[1750132422108,33.2,153.47,153.46,5.88223625]
[1750132422689,39.71593145,153.47,153.46,5.88223625]
[1750132422890,39.71593145,153.47,153.44,5.88223625]
[1750132424177,39.71593145,153.47,153.45,5.88223625]
[1750132425188,33.2,153.47,153.46,5.88223625]
[1750132425787,39.71593145,153.47,153.45,5.88223625]
[1750132431798,39.71593145,153.47,153.44,5.88223625]
[1750132432002,45.5981677,153.47,153.43,5.88223625]
[1750132432333,39.71593145,153.47,153.43,5.88223625]
[1750132433503,39.71593145,153.47,153.44,5.88223625]
[1750132433904,39.71593145,153.47,153.45,5.88223625]
[1750132434407,27.18,153.46,153.45,5.88223625]
[1750132437727,27.18,153.46,153.41,32.51847989]
[1750132437901,33.69654129,153.46,153.43,5.88223625]
[1750132438097,5.88223625,153.44,153.38,7.9396]
[1750132438305,5.88223625,153.42,153.38,5.88223625]
[1750132438522,27.16,153.41,153.38,5.88223625]
[1750132438703,27.16,153.41,153.39,5.88223625]
[1750132439233,27.16,153.41,153.4,5.88223625]
[1750132439531,27.16,153.43,153.4,5.88223625]
[1750132439717,27.16,153.43,153.42,5.88223625]
[1750132440523,33.67768803,153.43,153.41,5.88223625]
[1750132440725,33.67768803,153.43,153.39,5.88223625]
[1750132440900,39.55992428,153.43,153.38,5.88223625]
[1750132441701,33.67768803,153.43,153.39,5.88223625]
[1750132443811,33.67768803,153.43,153.4,5.88223625]
[1750132444831,39.55992428,153.43,153.38,5.88223625]
[1750132445011,5.88223625,153.42,153.38,5.88223625]
[1750132445210,27.18,153.41,153.39,5.88223625]
[1750132445512,33.22,153.41,153.39,5.88223625]
[1750132446415,39.73861162,153.41,153.39,5.88223625]
[1750132447935,24.67404668,153.4,153.36,5.88223625]
[1750132448135,27.14,153.39,153.36,5.88223625]
[1750132448435,6.51975485,153.38,153.36,5.88223625]
[1750132450131,27.14,153.37,153.34,5.88223625]
[1750132450432,33.02223625,153.37,153.33,5.88223625]
[1750132450630,27.14,153.37,153.33,5.88223625]
[1750132451432,6.52060511,153.36,153.33,5.88223625]
[1750132451641,27.14,153.35,153.33,5.88223625]
[1750132453025,27.14,153.35,153.32,5.88223625]
[1750132453224,6.04,153.34,153.32,5.88223625]
[1750132453425,6.04,153.34,153.33,5.88223625]
[1750132460245,6.04,153.34,153.33,12.40411716]
[1750132460422,5.98,153.39,153.34,1.5414]
[1750132460733,33.08,153.39,153.38,5.88223625]
[1750132461636,33.06,153.39,153.36,5.88223625]
[1750132461844,33.06,153.39,153.37,5.88223625]
[1750132464130,39.57938373,153.39,153.36,5.88223625]
[1750132466257,39.57938373,153.39,153.37,5.88223625]
[1750132467372,5.98,153.39,153.38,5.88223625]
[1750132467541,25.16686243,153.44,153.38,5.88223625]
[1750132467867,5.98,153.43,153.4,26.0]
[1750132468066,27.14,153.44,153.4,26.0]
[1750132468650,27.16,153.44,153.4,26.0]
[1750132468856,27.16,153.44,153.43,5.88223625]
[1750132469028,27.16,153.44,153.4,26.0]
[1750132469229,27.16,153.44,153.43,5.88223625]
[1750132469564,27.16,153.44,153.39,6.51928033]
[1750132469845,51.69188511,153.43,153.39,5.88223625]
[1750132470858,6.51805501,153.42,153.38,5.88223625]
[1750132471032,27.16,153.41,153.38,5.88223625]
[1750132471531,27.16,153.41,153.39,5.88223625]
[1750132473026,27.16,153.41,153.4,5.88223625]
[1750132476629,27.16,153.41,153.39,5.88223625]
[1750132477647,27.16,153.41,153.4,5.88223625]
[1750132478232,33.14,153.41,153.4,5.88223625]
[1750132480244,5.98,153.41,153.4,5.88223625]
[1750132482657,5.98,153.41,153.4,12.40114107]
[1750132484860,5.98,153.41,153.36,26.0]
[1750132485163,27.08,153.4,153.34,1.5414]
[1750132485338,27.08,153.4,153.33,6.2497]
[1750132485339,5.88223625,153.39,153.35,5.88223625]
[1750132486468,6.51975485,153.38,153.35,5.88223625]
[1750132486666,27.1,153.37,153.35,5.88223625]
[1750132487681,27.1,153.37,153.33,12.7715677]
[1750132487857,27.1,153.39,153.36,5.88223625]
[1750132488049,27.1,153.39,153.38,5.88223625]
[1750132492454,12.4985385,153.41,153.38,5.88223625]
[1750132492659,27.18,153.4,153.39,5.88223625]
[1750132493078,5.98,153.41,153.39,5.88223625]
[1750132493261,27.18,153.4,153.36,12.40276669]
[1750132493459,27.18,153.4,153.39,5.88223625]
[1750132493659,27.22,153.4,153.39,5.88223625]
[1750132495078,33.10223625,153.4,153.34,6.52145558]
[1750132495374,39.6211794,153.4,153.35,5.88223625]
[1750132495773,33.73894315,153.4,153.36,5.88223625]
[1750132495979,27.22,153.4,153.38,5.88223625]
[1750132496560,33.73906291,153.4,153.33,12.7714443]
[1750132496768,33.73906291,153.4,153.37,5.88223625]
[1750132497271,33.73906291,153.4,153.38,5.88223625]
[1750132499182,33.73906291,153.4,153.37,5.88223625]
[1750132499580,5.88223625,153.39,153.34,5.88223625]
[1750132499778,27.18,153.38,153.34,5.88223625]
[1750132500088,27.18,153.38,153.35,5.88223625]
[1750132500293,33.06223625,153.38,153.34,5.88223625]
[1750132500484,5.88223625,153.37,153.33,5.88223625]
[1750132500680,27.18,153.38,153.33,5.88223625]
[1750132500681,27.18,153.36,153.33,5.88223625]
[1750132502275,27.18,153.36,153.34,5.88223625]
[1750132502679,33.70062953,153.36,153.34,5.88223625]
[1750132503384,27.18,153.36,153.35,5.88223625]
[1750132505294,33.70061335,153.36,153.31,6.52263735]
[1750132505497,33.70061335,153.36,153.33,5.88223625]
[1750132505883,33.70061335,153.36,153.31,6.52263735]
[1750132506196,33.70061335,153.36,153.33,5.88223625]
[1750132506380,33.70061335,153.36,153.34,5.88223625]
[1750132507194,39.5828496,153.36,153.3,1.6093]
[1750132507393,50.00212613,153.36,153.31,5.88223625]
[1750132507689,55.88436238,153.36,153.31,5.88223625]
[1750132508993,33.70061335,153.36,153.33,5.88223625]
[1750132509182,33.70061335,153.36,153.34,5.88223625]
[1750132511100,1.6235,153.41,153.35,5.88223625]
[1750132511291,6.04,153.39,153.37,5.88223625]
[1750132511483,27.14,153.38,153.37,5.88223625]
[1750132512189,6.04,153.39,153.37,5.88223625]
[1750132512597,39.6794417,153.39,153.32,1.622]
[1750132512792,39.6794417,153.39,153.36,5.88223625]
[1750132513537,39.6794417,153.39,153.37,5.88223625]
[1750132516694,39.6794417,153.39,153.36,5.88223625]
[1750132517806,33.61983529,153.38,153.36,5.88223625]
[1750132521293,33.61983529,153.38,153.37,5.88223625]
[1750132522311,6.04,153.39,153.37,5.88223625]
[1750132522508,6.04,153.39,153.38,5.88223625]
[1750132523891,12.55932981,153.39,153.36,5.88223625]
[1750132526115,27.08,153.38,153.36,5.88223625]
[1750132526712,33.59981247,153.38,153.36,5.88223625]
[1750132528715,33.59981247,153.38,153.35,5.88223625]
[1750132528909,33.59981247,153.38,153.34,5.88223625]
[1750132529113,39.48204872,153.38,153.34,5.88223625]
[1750132529502,39.48204872,153.38,153.31,39.11953101]
[1750132529702,33.59981247,153.38,153.34,5.88223625]
[1750132530110,39.48204872,153.38,153.34,5.88223625]
[1750132530503,33.59981247,153.38,153.35,5.88223625]
[1750132530699,27.04,153.38,153.36,5.88223625]
[1750132530902,27.04,153.38,153.31,39.11952604]
[1750132531104,27.04,153.38,153.34,5.88223625]
[1750132531315,27.04,153.38,153.35,5.88223625]
[1750132532418,33.5601388,153.38,153.35,5.88223625]
[1750132534217,33.5601388,153.38,153.36,5.88223625]
[1750132534809,27.04,153.38,153.36,5.88223625]
[1750132535525,6.04,153.39,153.37,5.88223625]
[1750132535707,6.04,153.39,153.36,5.88223625]
[1750132535906,27.2,153.38,153.36,5.88223625]
[1750132538930,27.2,153.38,153.34,1.5511]
[1750132539106,27.2,153.38,153.36,5.88223625]
[1750132540007,33.71979942,153.38,153.36,5.88223625]
[1750132540207,27.2,153.38,153.36,5.88223625]
[1750132543008,33.71978081,153.38,153.34,5.88223625]
[1750132543434,33.71978081,153.38,153.35,5.88223625]
[1750132544914,33.71978081,153.38,153.33,6.2097]
[1750132545114,33.71978081,153.38,153.35,5.88223625]
[1750132546434,33.71978081,153.38,153.33,6.2097]
[1750132546632,33.71978081,153.38,153.35,5.88223625]
[1750132546810,27.2,153.38,153.36,5.88223625]
[1750132547321,33.71981782,153.38,153.36,5.88223625]
[1750132547522,27.2,153.38,153.37,5.88223625]
[1750132547935,33.2,153.39,153.37,5.88223625]
[1750132549915,33.2,153.39,153.31,26.0]
[1750132549916,24.53188511,153.38,153.31,31.88223625]
[1750132550113,5.88223625,153.35,153.3,7.54303625]
[1750132550412,27.14,153.34,153.3,7.54303625]
[1750132550612,27.14,153.34,153.31,5.88223625]
[1750132551534,27.14,153.34,153.32,5.88223625]
[1750132552036,33.66147464,153.34,153.32,5.88223625]
[1750132552332,27.14,153.34,153.33,5.88223625]
[1750132552530,27.14,153.34,153.3,8.18381193]
[1750132552726,27.14,153.34,153.33,5.88223625]
[1750132553121,27.14,153.34,153.32,5.88223625]
[1750132553316,27.14,153.34,153.33,5.88223625]
[1750132556646,33.66074594,153.36,153.33,5.88223625]
[1750132557856,27.12,153.37,153.35,5.88223625]
[1750132558025,17.38951573,153.39,153.35,5.88223625]
[1750132558352,27.12,153.38,153.36,5.88223625]
[1750132558520,27.12,153.38,153.35,5.88223625]
[1750132559626,33.63984595,153.38,153.35,5.88223625]
[1750132560649,33.63984595,153.38,153.36,5.88223625]
[1750132560955,17.38951573,153.39,153.37,5.88223625]
[1750132561248,6.04,153.39,153.38,5.88223625]
[1750132561459,6.51820518,153.42,153.38,5.88223625]
[1750132561636,10.8609058,153.42,153.4,5.88223625]
[1750132562118,10.8609058,153.42,153.41,5.88223625]
[1750132562119,6.0,153.42,153.41,5.88223625]
[1750132564048,6.0,153.42,153.41,6.51847989]
[1750132564348,6.0,153.42,153.41,12.40071614]
[1750132566244,6.0,153.42,153.41,5.88223625]
[1750132570355,6.0,153.42,153.41,12.40071614]
[1750132570660,6.0,153.42,153.38,0.28432314]
[1750132570838,6.0,153.42,153.41,5.88223625]
[1750132571169,6.0,153.42,153.37,26.0]
[1750132571330,5.88223625,153.4,153.34,6.52132705]
[1750132571666,27.04,153.39,153.35,5.88223625]
[1750132572245,33.55942091,153.39,153.35,5.88223625]
[1750132572446,5.88223625,153.38,153.32,1.6324]
[1750132572743,5.88223625,153.38,153.34,5.88223625]
[1750132574456,12.4024162,153.37,153.33,5.88223625]
[1750132575735,6.52017995,153.37,153.33,5.88223625]
[1750132579066,12.4024162,153.37,153.32,5.88223625]
[1750132580147,12.4024162,153.37,153.33,5.88223625]
[1750132581637,12.4024162,153.37,153.32,5.88223625]
[1750132582243,12.4024162,153.37,153.33,5.88223625]
[1750132583064,12.4024162,153.37,153.32,5.88223625]
[1750132585442,5.88223625,153.35,153.31,5.88223625]
[1750132585663,32.9,153.34,153.31,5.88223625]
[1750132588768,39.42151184,153.34,153.31,5.88223625]
[1750132590256,39.42151184,153.34,153.29,6.52351786]
[1750132590456,39.42151184,153.34,153.31,5.88223625]
[1750132593381,39.42151184,153.34,153.3,5.88223625]
[1750132594151,5.88223625,153.33,153.27,6.2766]
[1750132594462,45.30374809,153.34,153.29,5.88223625]
[1750132595958,45.30374809,153.34,153.27,12.80100148]
[1750132596274,45.30374809,153.34,153.29,5.88223625]
[1750132601250,45.30374809,153.34,153.27,6.2766]
[1750132601456,5.88223625,153.33,153.29,5.88223625]
[1750132601755,26.92,153.32,153.29,5.88223625]
[1750132602377,26.92,153.32,153.27,12.80101489]
[1750132602583,26.92,153.32,153.31,5.88223625]
[1750132603778,26.92,153.32,153.3,5.88223625]
[1750132604484,33.44233902,153.32,153.29,5.88223625]
[1750132604781,39.32457527,153.32,153.28,5.88223625]
[1750132605554,5.88223625,153.31,153.24,33.8075]
[1750132605756,26.92,153.3,153.26,5.88223625]
[1750132605968,26.92,153.3,153.27,5.88223625]
[1750132606783,26.92,153.3,153.21,8.1529]
[1750132606982,26.92,153.3,153.26,5.88223625]
[1750132607181,26.92,153.3,153.27,5.88223625]
[1750132608181,6.52358275,153.29,153.27,5.88223625]
[1750132613091,33.4432808,153.3,153.27,5.88223625]
[1750132613892,33.4432808,153.3,153.24,6.5256774]
[1750132613893,26.92,153.3,153.28,5.88223625]
[1750132614068,26.92,153.3,153.29,5.88223625]
[1750132616601,26.92,153.3,153.26,6.52485208]
[1750132616792,26.92,153.3,153.29,5.88223625]
[1750132617289,33.4433569,153.3,153.28,5.88223625]
[1750132617489,33.4433569,153.3,153.27,5.88223625]
[1750132622291,33.4433569,153.3,153.26,5.88223625]
[1750132622470,39.32559315,153.3,153.26,5.88223625]
[1750132623492,33.4433569,153.3,153.26,5.88223625]
[1750132623681,39.32559315,153.3,153.26,5.88223625]
[1750132624592,33.4433569,153.3,153.27,5.88223625]
[1750132624784,5.88,153.29,153.28,5.88223625]
[1750132626477,32.8,153.29,153.28,5.88223625]
[1750132626897,5.88,153.29,153.28,5.88223625]
[1750132629104,5.88,153.29,153.28,12.4062446]
[1750132629306,5.88,153.29,153.28,18.28848085]
[1750132629608,26.92,153.32,153.28,18.28848085]
[1750132629773,26.92,153.32,153.31,5.88223625]
[1750132630282,5.88,153.34,153.31,5.88223625]
[1750132630486,32.8,153.34,153.33,5.88223625]
[1750132632713,5.88,153.34,153.33,5.88223625]
[1750132632877,39.321481,153.34,153.31,5.88223625]
[1750132633078,45.20371725,153.34,153.3,5.88223625]
[1750132633280,39.321481,153.34,153.31,5.88223625]
[1750132633682,44.16624735,153.34,153.31,5.88223625]
[1750132633886,50.0484836,153.34,153.3,5.88223625]
[1750132634086,45.20371725,153.34,153.3,5.88223625]
[1750132636693,45.20371725,153.34,153.27,13.02660921]
[1750132637205,45.20371725,153.34,153.3,5.88223625]
[1750132638382,32.8,153.34,153.32,5.88223625]
[1750132638610,32.8,153.34,153.33,5.88223625]
[1750132638804,5.88,153.34,153.33,5.88223625]
[1750132638986,32.8,153.34,153.33,5.88223625]
[1750132640204,5.88,153.34,153.33,5.88223625]
[1750132640414,5.88,153.34,153.33,12.40411716]
[1750132645308,5.88,153.39,153.38,12.4019911]
[1750132647023,5.88,153.39,153.38,5.88223625]
[1750132647326,6.51766161,153.43,153.38,5.88223625]
[1750132647622,26.9,153.41,153.38,5.88223625]
[1750132648128,26.9,153.41,153.4,5.88223625]
[1750132650498,5.86,153.42,153.4,5.88223625]
[1750132650712,32.76,153.42,153.41,5.88223625]
[1750132650911,5.86,153.42,153.41,5.88223625]
[1750132651920,5.86,153.42,153.33,6.3376]
[1750132652129,5.88223625,153.4,153.36,5.88223625]
[1750132652432,5.88223625,153.38,153.34,5.88223625]
[1750132652631,12.40211597,153.38,153.34,5.88223625]
[1750132652927,6.51987972,153.38,153.34,5.88223625]
[1750132654228,33.41934788,153.39,153.35,5.88223625]
[1750132655224,33.41934788,153.39,153.32,1.5507]
[1750132655225,33.41934788,153.39,153.36,5.88223625]
[1750132655531,33.41934788,153.39,153.33,6.52188091]
[1750132655532,26.9,153.39,153.37,5.88223625]
[1750132655703,30.39188511,153.42,153.38,5.88223625]
[1750132655896,26.9,153.41,153.38,5.88223625]
[1750132656096,26.9,153.41,153.33,6.52188091]
[1750132656299,32.78223625,153.41,153.37,5.88223625]
[1750132659000,39.3009626,153.41,153.37,5.88223625]
[1750132659223,26.9,153.4,153.37,5.88223625]
[1750132659925,32.78223625,153.4,153.34,26.0]
[1750132660307,32.78223625,153.4,153.36,5.88223625]
[1750132660503,12.37838268,153.42,153.39,5.88223625]
[1750132660708,26.9,153.41,153.39,5.88223625]
[1750132660934,5.86,153.42,153.4,5.88223625]
[1750132661231,26.9,153.41,153.4,5.88223625]
[1750132661615,5.86,153.42,153.4,5.88223625]
[1750132661830,12.37807837,153.42,153.39,5.88223625]
[1750132662016,26.9,153.41,153.38,5.88223625]
[1750132662216,5.88223625,153.4,153.35,5.88223625]
[1750132662529,32.78223625,153.41,153.36,5.88223625]
[1750132663519,39.30113969,153.41,153.36,5.88223625]
[1750132665630,39.30113969,153.41,153.34,32.52118045]
[1750132665820,39.30113969,153.41,153.37,5.88223625]
[1750132667109,39.30113969,153.41,153.36,5.88223625]
[1750132668521,33.41890344,153.41,153.36,5.88223625]
[1750132668722,39.30113969,153.41,153.36,5.88223625]
[1750132669037,5.88223625,153.4,153.36,5.88223625]
[1750132669230,26.88,153.39,153.36,5.88223625]
[1750132669823,26.88,153.39,153.35,5.88223625]
[1750132670430,5.88223625,153.38,153.32,8.07297044]
[1750132670746,5.88223625,153.37,153.33,5.88223625]
[1750132671041,26.88,153.36,153.33,5.88223625]
[1750132672039,26.88,153.36,153.34,5.88223625]
[1750132677338,26.88,153.36,153.35,5.88223625]
[1750132677523,6.51902069,153.4,153.35,5.88223625]
[1750132677849,6.51902069,153.4,153.37,5.88223625]
[1750132677850,26.88,153.38,153.37,5.88223625]
[1750132678518,26.88,153.39,153.37,5.88223625]
[1750132678729,26.88,153.39,153.38,5.88223625]
[1750132678931,26.88,153.39,153.37,5.88223625]
[1750132680731,6.51864237,153.41,153.37,5.88223625]
[1750132681128,26.88,153.4,153.37,5.88223625]
[1750132682954,26.88,153.4,153.35,5.88223625]
[1750132682955,5.88223625,153.39,153.35,5.88223625]
[1750132683240,39.28124184,153.4,153.35,5.88223625]
[1750132683749,5.86,153.39,153.36,5.88223625]
[1750132684640,12.37947274,153.39,153.36,5.88223625]
[1750132685343,5.86,153.39,153.37,5.88223625]
[1750132685545,5.86,153.39,153.35,6.52098671]
[1750132685546,5.86,153.39,153.38,5.88223625]
[1750132686332,21.87219977,153.44,153.38,5.88223625]
[1750132686534,53.60499485,153.44,153.43,5.88223625]
[1750132686934,26.72499485,153.44,153.43,5.88223625]
[1750132687138,21.87219977,153.44,153.43,5.88223625]
[1750132690723,34.27177117,153.44,153.38,5.88223625]
[1750132690929,5.88223625,153.43,153.37,1.5397]
[1750132691163,26.88,153.42,153.37,1.5397]
[1750132691366,26.88,153.42,153.39,5.88223625]
[1750132693032,33.39818607,153.42,153.39,5.88223625]
[1750132694744,33.39818607,153.42,153.38,5.88223625]
[1750132695138,33.39818607,153.42,153.39,5.88223625]
[1750132697559,5.86,153.41,153.4,5.88223625]
[1750132700959,5.86,153.41,153.39,5.88223625]
[1750132701146,26.88,153.4,153.38,5.88223625]
[1750132701845,26.88,153.4,153.37,1.5397]
[1750132702046,26.88,153.4,153.37,5.88223625]
[1750132702374,5.88223625,153.39,153.35,5.88223625]
[1750132703457,12.40184795,153.39,153.35,5.88223625]
[1750132703656,6.5196117,153.39,153.35,5.88223625]
[1750132707176,6.5196117,153.39,153.36,5.88223625]
[1750132709570,6.5196117,153.39,153.35,5.88223625]
[1750132711078,6.5196117,153.39,153.36,5.88223625]
[1750132712066,5.86,153.38,153.36,5.88223625]
[1750132712267,26.88,153.37,153.36,5.88223625]
[1750132712467,26.88,153.37,153.35,5.88223625]
[1750132713451,26.88,153.37,153.36,5.88223625]
[1750132715277,26.88,153.37,153.36,5.88223625]
[1750132719081,26.88,153.37,153.35,5.88223625]
[1750132721863,26.88,153.37,153.36,5.88223625]
[1750132722982,5.86,153.38,153.36,12.40284136]
[1750132723177,5.86,153.38,153.37,5.88223625]
[1750132727894,5.86,153.38,153.37,12.4024162]
[1750132731582,5.86,153.43,153.37,18.6598162]
[1750132731784,32.72,153.43,153.42,5.88223625]
[1750132732391,38.60223625,153.43,153.37,6.52017995]
[1750132732697,38.60223625,153.43,153.34,26.0]
[1750132732698,38.60223625,153.43,153.39,5.88223625]
[1750132732872,32.72,153.43,153.4,5.88223625]
[1750132733073,26.86,153.42,153.4,5.88223625]
[1750132734703,26.86,153.42,153.41,5.88223625]
[1750132734877,26.86,153.42,153.4,5.88223625]
[1750132737700,26.86,153.42,153.38,6.51964383]
[1750132738082,26.86,153.42,153.4,5.88223625]
[1750132740609,26.86,153.42,153.39,5.88223625]
[1750132740997,39.26045331,153.42,153.35,32.52087585]
[1750132741195,5.88223625,153.41,153.36,5.88223625]
[1750132741796,5.88223625,153.41,153.37,5.88223625]
[1750132742106,12.40095006,153.41,153.37,5.88223625]
[1750132742421,38.23259873,153.42,153.38,5.88223625]
[1750132742718,33.37811824,153.42,153.38,5.88223625]
[1750132742890,26.86,153.41,153.38,5.88223625]
[1750132744396,33.37862909,153.41,153.37,5.88223625]
[1750132744584,39.26086534,153.41,153.37,5.88223625]
[1750132745778,33.37862909,153.41,153.37,5.88223625]
[1750132746302,5.84,153.4,153.37,5.88223625]
[1750132756611,5.84,153.4,153.39,5.88223625]
[1750132760489,5.84,153.4,153.35,32.52093218]
[1750132760694,11.72223625,153.4,153.36,5.88223625]
[1750132760922,11.72223625,153.4,153.35,32.52093218]
[1750132761094,11.72223625,153.4,153.36,5.88223625]
[1750132761403,5.84,153.4,153.37,5.88223625]
[1750132761603,5.84,153.4,153.38,5.88223625]
[1750132763294,5.84,153.4,153.39,5.88223625]
[1750132765007,5.84,153.4,153.36,6.52060511]
[1750132765205,5.84,153.4,153.39,5.88223625]
[1750132766516,5.84,153.4,153.38,5.88223625]
[1750132767793,5.84,153.4,153.39,5.88223625]
[1750132771306,5.84,153.4,153.38,5.88223625]
[1750132778130,5.84,153.4,153.36,6.52060511]
[1750132778334,5.84,153.4,153.38,5.88223625]
[1750132778707,5.84,153.4,153.36,6.52060511]
[1750132778912,5.84,153.4,153.37,5.88223625]
[1750132779226,5.84,153.4,153.38,5.88223625]
[1750132780130,26.84,153.41,153.38,5.88223625]
[1750132782835,33.35868042,153.41,153.38,5.88223625]
[1750132783525,33.35868042,153.41,153.37,5.88223625]
[1750132784536,33.35868042,153.41,153.36,6.52049117]
[1750132784736,33.35868042,153.41,153.37,5.88223625]
[1750132786610,26.84,153.41,153.38,5.88223625]
[1750132786809,12.33820356,153.42,153.38,5.88223625]
[1750132787022,26.82,153.41,153.38,5.88223625]
[1750132787224,26.82,153.41,153.39,5.88223625]
[1750132788012,5.82,153.42,153.4,5.88223625]
[1750132788213,32.64,153.42,153.4,5.88223625]
[1750132788515,5.82,153.42,153.41,5.88223625]
[1750132790748,5.82,153.42,153.41,12.40071614]
[1750132790948,5.82,153.42,153.41,5.88223625]
[1750132791439,5.82,153.42,153.41,12.40071614]
[1750132791827,12.33608012,153.47,153.41,12.40071614]
[1750132792128,26.82,153.46,153.44,5.88223625]
[1750132793614,17.19240572,153.47,153.42,6.51783931]